bitfinex/quotes_ETHUSD_20240711
["timestamp","ask_amount","ask_price","bid_price","bid_amount"]
[1720711702668,1.14860355,3153.3,3152.8,0.04317284]
[1720711702866,1.14860355,3153.3,3152.4,3.52149571]
[1720711703068,1.14860355,3153.3,3152.9,0.04315297]
[1720711703372,1.14897996,3153.3,3152.5,3.17208]
[1720711703582,0.65922684,3153.3,3153.0,0.0431331]
[1720711703771,0.65922684,3153.3,3152.6,0.35214657]
[1720711703772,0.65922684,3153.5,3152.8,3.17177]
[1720711703939,0.65922684,3153.5,3153.1,0.04311323]
[1720711704272,0.65922684,3153.5,3152.6,0.35214657]
[1720711704475,0.65922684,3153.5,3152.5,3.17203]
[1720711704476,0.82403355,3153.4,3153.2,0.04309337]
[1720711704633,0.73852015,3153.3,3153.2,0.04309337]
[1720711704833,3.17141,3153.2,3152.1,3.17239]
[1720711705049,3.17141,3153.2,3152.4,3.17216]
[1720711705050,0.65881331,3153.1,3152.4,3.17216]
[1720711705346,0.73811653,3153.2,3152.4,3.17216]
[1720711705566,1.06577899,3153.1,3151.4,5.3621]
[1720711705876,0.65881331,3152.8,3151.9,3.17266]
[1720711706036,0.73812255,3152.9,3151.9,3.17266]
[1720711706385,0.65881331,3152.8,3151.9,3.17266]
[1720711706537,0.65881331,3152.9,3151.9,3.17266]
[1720711706738,1.3682856,3152.9,3151.9,3.17266]
[1720711706932,0.65881331,3152.8,3151.8,3.1727]
[1720711707447,1.3682856,3152.9,3151.8,3.1727]
[1720711707649,0.70947229,3152.9,3151.9,3.17264]
[1720711707845,1.3682856,3152.9,3151.9,3.17264]
[1720711708177,0.77115856,3152.8,3151.9,3.17264]
[1720711708777,1.42997187,3152.8,3152.1,3.17238]
[1720711709101,4.5399656,3152.9,3151.7,3.17283]
[1720711709305,0.65881331,3152.8,3151.7,3.17283]
[1720711709504,0.65881331,3152.8,3151.7,3.17288]
[1720711709505,1.20881331,3152.7,3151.7,3.17288]
[1720711709719,0.55,3152.7,3151.7,3.17288]
[1720711710802,3.80120557,3152.7,3151.7,3.17288]
[1720711711108,0.76318589,3152.6,3151.7,3.17288]
[1720711711412,2.3701,3152.4,3151.3,7.29]
[1720711711697,3.1724,3152.2,3151.0,5.59144]
[1720711711906,0.07932702,3152.1,3151.0,3.17354]
[1720711712073,0.3251727,3152.0,3151.0,3.17354]
[1720711713404,0.07932692,3151.9,3151.1,3.17349]
[1720711714078,0.07932692,3151.9,3150.9,6.34367]
[1720711714400,3.57709961,3152.0,3151.0,3.17356]
[1720711715112,0.3251727,3152.0,3151.3,3.17327]
[1720711715278,6.20066906,3152.4,3151.3,3.17327]
[1720711715608,8.71461,3152.4,3151.3,3.17327]
[1720711715766,1.09866556,3152.3,3151.3,3.17327]
[1720711715965,1.09866556,3152.2,3151.3,3.17327]
[1720711716279,1.52579344,3152.1,3151.4,0.04346688]
[1720711716463,1.09869684,3152.0,3151.4,0.04346688]
[1720711716664,0.42709656,3152.1,3151.4,0.04346688]
[1720711716872,5.54234,3152.4,3151.4,0.04346688]
[1720711717072,1.09865959,3152.3,3151.4,0.04346688]
[1720711717306,1.09865959,3152.2,3151.4,0.04346688]
[1720711717506,4.27097959,3152.3,3151.4,0.04346688]
[1720711717667,1.09865959,3152.2,3151.1,3.17343]
[1720711717869,0.42709796,3152.1,3151.2,0.04372742]
[1720711718079,1.09865959,3152.0,3151.2,3.21710742]
[1720711719605,0.42709796,3152.1,3151.2,3.21710742]
[1720711719897,2.19747264,3152.0,3151.9,0.2]
[1720711720483,5.37005264,3152.0,3151.9,0.2]
[1720711720666,6.2749387,3152.0,3151.9,0.2]
[1720711721669,3.1023587,3152.0,3151.9,0.2]
[1720711722180,2.19747264,3152.0,3151.9,0.2]
[1720711722891,1.09873636,3152.0,3151.9,0.2]
[1720711723080,2.19745065,3152.0,3151.9,0.2]
[1720711723407,2.19744754,3152.0,3151.9,0.2]
[1720711724076,2.19744754,3152.0,3151.9,0.4]
[1720711724302,1.09873636,3152.0,3151.9,0.4]
[1720711725799,1.09873636,3152.0,3151.9,7.14624353]
[1720711725971,1.09873636,3152.0,3151.9,9.37624353]
[1720711726786,1.09873636,3152.0,3151.9,11.79654353]
[1720711726980,3.01423306,3153.5,3152.4,3.17216]
[1720711727299,0.65842981,3153.3,3152.5,0.04343774]
[1720711727625,1.27397978,3153.2,3152.5,0.04343774]
[1720711727826,1.09830618,3153.1,3152.5,0.04343774]
[1720711728334,1.09832988,3153.0,3152.5,0.04343774]
[1720711728535,0.83410341,3153.2,3152.5,0.04343774]
[1720711728856,1.09833523,3153.1,3152.5,0.04343774]
[1720711729244,1.09833523,3153.0,3152.5,0.04343774]
[1720711729396,0.98764472,3153.3,3152.5,0.04343774]
[1720711729397,0.65842981,3153.1,3152.5,0.04343774]
[1720711729729,1.09833608,3153.0,3152.5,0.04343774]
[1720711730065,0.65842981,3153.1,3152.5,0.04343774]
[1720711730191,2.30678033,3153.0,3152.5,0.04343774]
[1720711730390,1.75678033,3152.9,3152.0,3.17251]
[1720711730721,1.75678033,3152.8,3152.0,3.867023]
[1720711730905,1.09835052,3152.7,3152.1,0.0431961]
[1720711731098,0.65842981,3152.9,3152.1,0.0431961]
[1720711731296,1.75684915,3152.8,3152.1,3.2156461]
[1720711731642,1.75684915,3152.7,3152.1,0.0431961]
[1720711731795,0.65842981,3152.7,3152.1,0.0431961]
[1720711731994,0.65842981,3152.7,3152.0,3.17258]
[1720711732307,0.65842981,3152.6,3152.1,0.04322285]
[1720711732695,0.66099505,3152.6,3152.1,0.04322285]
[1720711732925,0.66099505,3152.6,3152.2,3.17238]
[1720711733141,0.66104176,3152.8,3152.2,3.21553297]
[1720711733301,0.66104176,3152.8,3152.3,3.17221]
[1720711733505,0.66104176,3152.8,3152.3,3.21539087]
[1720711734106,0.66104176,3152.7,3152.3,3.21539087]
[1720711734499,0.66104176,3152.7,3152.3,0.04318087]
[1720711734693,0.66104176,3152.7,3152.2,3.17233]
[1720711734895,0.66104176,3152.6,3152.3,0.04318087]
[1720711735104,0.66104176,3152.6,3152.0,3.17255]
[1720711735308,0.66104176,3152.4,3152.1,0.04322062]
[1720711735949,0.66131384,3152.5,3152.1,0.04322062]
[1720711736155,0.66131384,3152.5,3152.1,0.74204668]
[1720711736364,0.66131384,3152.6,3152.1,0.74204668]
[1720711736651,0.66131384,3152.5,3152.1,0.74204668]
[1720711737548,0.66131384,3152.5,3152.1,3.91452668]
[1720711737724,0.66131384,3152.6,3152.1,0.74204668]
[1720711737928,0.66131384,3152.6,3152.2,0.39145367]
[1720711738243,0.66131384,3152.7,3152.2,3.56381367]
[1720711738449,0.66131384,3152.7,3152.3,0.04320093]
[1720711738661,0.66131384,3152.6,3152.3,0.04320093]
[1720711738809,0.66131384,3152.6,3152.4,3.17217]
[1720711739013,0.66131384,3152.7,3152.4,3.21535105]
[1720711739446,0.66097645,3152.7,3152.4,3.89326752]
[1720711739715,0.66097645,3152.8,3152.4,3.89326752]
[1720711739958,0.66097645,3152.7,3152.4,3.89326752]
[1720711740155,0.66097645,3152.8,3152.5,3.17202]
[1720711740365,0.66097645,3152.7,3152.4,0.72109752]
[1720711740661,0.66097645,3152.7,3152.6,0.04314131]
[1720711740968,0.66097645,3152.8,3152.6,3.21512131]
[1720711741137,0.66097645,3152.7,3152.6,0.04314131]
[1720711741463,0.99146468,3152.9,3152.6,0.04314131]
[1720711741464,0.99146468,3152.8,3152.6,0.04314131]
[1720711741773,1.3219529,3152.9,3152.5,3.17208]
[1720711741774,0.66133055,3152.7,3152.5,3.17208]
[1720711741982,0.66133055,3152.8,3152.7,0.04312144]
[1720711742126,0.66133055,3152.8,3152.6,0.04314131]
[1720711742324,0.66128177,3152.8,3152.6,3.17194]
[1720711742523,0.66128177,3152.9,3152.7,3.21500144]
[1720711742967,0.66128177,3152.8,3152.7,0.04312144]
[1720711743329,0.66128177,3152.8,3152.5,3.17207]
[1720711743534,0.66128177,3152.7,3152.5,3.17201]
[1720711743886,0.66128177,3152.8,3152.5,3.17201]
[1720711744388,0.66128177,3152.7,3152.3,3.17225]
[1720711744880,0.66128177,3152.6,3152.3,3.17225]
[1720711745187,0.66128177,3152.5,3152.0,3.17258]
[1720711745480,0.66128177,3152.5,3151.9,0.6]
[1720711745643,0.66128177,3152.4,3151.9,3.77262]
[1720711746276,0.66128177,3152.4,3151.9,4.467135]
[1720711746678,0.66128177,3152.4,3152.1,3.1724]
[1720711746875,0.66128177,3152.5,3152.1,3.1724]
[1720711747684,0.6616372,3152.6,3152.5,3.17208]
[1720711747834,0.6616372,3153.0,3152.8,3.17178]
[1720711748278,0.6616372,3153.0,3152.9,3.21476616]
[1720711748781,0.6616372,3153.1,3153.0,3.17158]
[1720711749004,1.98510468,3153.9,3153.0,3.17158]
[1720711749005,0.6616372,3153.7,3153.6,3.17097]
[1720711749140,0.6616372,3153.9,3153.4,3.17108]
[1720711749338,0.6616372,3153.7,3153.6,0.04282226]
[1720711749576,0.9924558,3153.8,3153.0,3.17149]
[1720711749777,0.66149257,3153.5,3153.0,3.17149]
[1720711750034,0.66149257,3153.7,3153.5,3.17098]
[1720711750266,0.66149257,3153.8,3153.6,3.17097]
[1720711751096,0.66149257,3153.9,3153.6,3.17097]
[1720711751294,0.66149257,3153.9,3153.3,2.446]
[1720711751295,0.66149257,3153.9,3153.3,5.61719]
[1720711751434,0.66149257,3153.9,3153.4,3.17111]
[1720711751640,0.66103798,3153.8,3153.4,3.17111]
[1720711751882,0.66103798,3153.8,3153.5,3.17106]
[1720711752179,0.66103798,3153.9,3153.5,3.17106]
[1720711752474,0.66103798,3153.9,3153.5,6.34205]
[1720711752788,0.66103798,3153.9,3153.5,3.17099]
[1720711753153,0.66103798,3153.8,3153.3,6.34239]
[1720711753373,0.66103798,3153.8,3153.3,3.17118]
[1720711753544,0.66103798,3153.8,3152.9,2.23]
[1720711753903,0.66103798,3153.7,3152.9,0.952]
[1720711754084,0.66103798,3153.7,3153.0,3.17153]
[1720711754252,0.66103798,3153.8,3153.1,3.17147]
[1720711754454,0.66103798,3153.8,3153.2,3.17134]
[1720711754651,0.66103798,3153.8,3153.4,3.1711]
[1720711754861,0.99155697,3153.9,3153.5,3.17107]
[1720711754862,0.66103798,3153.9,3153.5,3.17107]
[1720711755256,0.66103798,3153.9,3153.6,3.17096]
[1720711755470,0.66103798,3154.0,3153.6,3.17096]
[1720711755656,0.66103798,3154.0,3153.0,3.17154]
[1720711755657,0.82629748,3154.0,3153.0,3.17152]
[1720711755870,0.66103798,3153.8,3153.0,3.17158]
[1720711756045,0.66103798,3153.8,3153.1,3.17142]
[1720711756351,0.66103798,3154.0,3153.2,3.17136]
[1720711756552,0.66103798,3154.0,3153.5,3.17099]
[1720711756880,0.66103798,3154.1,3153.7,3.17086]
[1720711757043,1.09789214,3154.0,3153.5,3.17098]
[1720711757243,0.66103798,3154.0,3153.5,6.34199]
[1720711757684,0.66103798,3154.0,3153.5,3.17098]
[1720711758084,2.95693798,3154.0,3153.2,3.17137]
[1720711758305,2.95693798,3154.0,3153.1,3.17147]
[1720711758306,2.95693798,3154.0,3153.3,3.17127]
[1720711758482,3.35178748,3154.0,3153.1,3.17138]
[1720711758652,1.75902892,3153.9,3153.1,3.17138]
[1720711758853,1.759073,3153.8,3153.1,6.3428]
[1720711759053,0.66103798,3153.9,3153.1,6.3428]
[1720711759253,3.43106425,3154.0,3153.1,6.3428]
[1720711759457,2.95693798,3154.0,3153.6,3.17095]
[1720711759695,0.66103798,3154.1,3153.4,3.17109]
[1720711760000,0.66103798,3154.1,3153.4,6.34218]
[1720711760206,0.66103798,3154.1,3153.6,3.17089]
[1720711760490,3.13723798,3154.4,3153.6,3.17088]
[1720711760704,0.66103798,3154.5,3153.8,3.17071]
[1720711760994,7.96103798,3154.7,3153.8,3.23411458]
[1720711761195,1.78520747,3154.7,3154.0,3.17057]
[1720711761416,2.94999051,3154.9,3153.8,0.0634046]
[1720711761564,2.94999051,3154.9,3154.0,3.17051]
[1720711761895,2.94981827,3154.9,3154.2,3.17035]
[1720711762055,3.02906702,3154.9,3153.8,3.17071]
[1720711762258,2.37831262,3154.8,3153.9,3.17067]
[1720711762452,0.0792583,3154.7,3153.9,3.37067]
[1720711762797,0.0792583,3154.7,3154.0,0.04224366]
[1720711767336,2.2891,3154.9,3154.3,3.85067842]
[1720711767619,3.14475622,3155.3,3154.6,3.16996]
[1720711767945,2.4843,3155.3,3154.7,0.04210916]
[1720711768097,0.32239978,3155.2,3154.6,3.16996]
[1720711768290,0.32239978,3155.2,3154.8,0.04208932]
[1720711768493,0.32239978,3155.2,3154.6,3.16996]
[1720711768716,0.32239978,3155.2,3154.9,0.04206948]
[1720711768956,0.32239978,3155.2,3154.6,3.16996]
[1720711769228,0.32239978,3155.2,3155.0,0.04204963]
[1720711769528,0.32239978,3155.2,3154.6,3.16996]
[1720711769529,0.32239978,3155.2,3155.1,0.04202979]
[1720711769691,0.32239978,3155.2,3154.6,3.16996]
[1720711769890,2.4843,3155.3,3155.1,0.04202979]
[1720711770225,0.99068433,3155.6,3154.9,3.16965]
[1720711770226,0.66045622,3155.6,3154.9,3.16965]
[1720711770541,3.10849769,3155.7,3154.9,3.16965]
[1720711771034,3.10849769,3155.7,3155.0,0.04204963]
[1720711771035,0.66045622,3155.6,3155.0,0.04204963]
[1720711771199,0.07923848,3155.5,3155.0,0.04204963]
[1720711771397,0.18371762,3155.4,3154.6,3.16997]
[1720711771731,0.07923848,3155.4,3154.4,3.17013]
[1720711771889,0.07923848,3155.4,3154.7,0.04210916]
[1720711772087,0.07923848,3155.4,3154.0,3.17052]
[1720711772088,3.16937,3155.2,3154.0,3.17052]
[1720711772437,0.07925005,3155.1,3154.8,0.04184209]
[1720711772742,0.07925005,3155.1,3154.0,3.17052]
[1720711773035,0.07925005,3155.1,3154.9,0.04182224]
[1720711773036,0.76481768,3155.1,3154.9,0.04182224]
[1720711773406,0.76481768,3155.1,3154.0,3.17052]
[1720711773607,0.76481768,3155.1,3154.2,3.17037]
[1720711774133,0.76481768,3155.1,3154.3,0.04194132]
[1720711774754,3.47979114,3155.0,3154.3,0.04194132]
[1720711775058,3.47979114,3155.0,3153.5,7.29]
[1720711775059,2.3821,3154.5,3153.5,7.29]
[1720711775332,5.00759296,3154.4,3153.2,3.17132]
[1720711775534,1.09769114,3154.3,3153.2,3.17132]
[1720711775716,3.24965272,3154.2,3153.1,7.29]
[1720711775910,1.59847115,3154.1,3153.1,10.46146]
[1720711776116,6.7070654,3154.0,3153.1,7.29]
[1720711776314,4.0864954,3154.0,3153.1,7.29]
[1720711776494,4.00722484,3154.0,3153.1,7.29]
[1720711776737,3.45722484,3154.0,3153.3,3.17123]
[1720711776954,3.45722484,3154.0,3153.1,7.29]
[1720711776955,0.66045622,3154.3,3153.9,0.64214326]
[1720711777117,1.09793566,3154.2,3153.9,0.64214326]
[1720711777300,0.73972214,3154.4,3153.9,0.64214326]
[1720711777301,0.07926592,3154.4,3153.9,0.64214326]
[1720711777496,1.09787857,3154.3,3153.9,0.64214326]
[1720711777701,1.09787857,3154.2,3153.9,0.64214326]
[1720711777907,0.70616213,3154.4,3153.9,0.64214326]
[1720711778102,1.09787107,3154.3,3153.9,0.64214326]
[1720711778406,0.99068433,3154.7,3153.9,0.64214326]
[1720711778407,0.66045622,3154.7,3153.9,0.64214326]
[1720711778629,1.09778043,3154.6,3153.9,0.64214326]
[1720711778829,1.09778043,3154.5,3153.9,0.64214326]
[1720711779043,1.09778043,3154.6,3153.9,0.64214326]
[1720711779232,0.73971293,3154.8,3153.9,0.64214326]
[1720711779233,1.09779088,3154.5,3153.9,0.64214326]
[1720711779434,1.09779088,3154.4,3153.9,0.64214326]
[1720711780749,1.17708673,3154.3,3153.9,0.64214326]
[1720711780923,0.07926829,3154.3,3153.9,0.64214326]
[1720711781118,0.07926829,3154.3,3153.9,0.6]
[1720711781329,1.09786494,3154.2,3154.0,0.04202761]
[1720711781541,0.07926829,3154.3,3153.9,0.6]
[1720711781707,1.09786418,3154.2,3153.9,0.6]
[1720711781912,0.07926829,3154.3,3153.9,0.6]
[1720711782112,1.09786795,3154.2,3153.9,0.6]
[1720711782345,0.66118907,3154.4,3153.9,0.6]
[1720711782544,1.7590089,3154.3,3153.9,0.6]
[1720711782763,1.09781983,3154.2,3153.9,0.6]
[1720711782911,1.7590089,3154.3,3153.9,0.6]
[1720711783250,1.09781983,3154.2,3153.9,0.6]
[1720711783836,0.66186769,3154.2,3153.9,0.6]
[1720711784013,1.09788946,3154.1,3153.9,0.6]
[1720711784351,1.09788946,3154.0,3153.9,0.6]
[1720711785437,1.75975715,3154.0,3153.9,0.6]
[1720711786312,1.09788946,3154.0,3153.9,0.6]
[1720711786710,6.16279129,3154.0,3153.9,0.6]
[1720711786938,10.29357233,3154.0,3153.9,0.6]
[1720711787111,18.47129967,3154.0,3153.9,0.6]
[1720711787318,16.48487638,3154.0,3153.9,0.6]
[1720711789477,18.47185717,3154.0,3153.9,0.6]
[1720711790126,16.48487638,3154.0,3153.9,0.6]
[1720711790329,16.48513819,3154.0,3153.9,0.6]
[1720711790726,16.48514826,3154.0,3153.9,0.6]
[1720711790924,16.48514826,3154.0,3153.9,1e-08]
[1720711791161,3.17144,3153.2,3152.2,3.17238]
[1720711791382,0.662493,3152.9,3152.2,4.048649]
[1720711791524,0.662493,3152.8,3152.3,0.041218]
[1720711791746,0.662493,3152.8,3152.0,8.76282]
[1720711791931,0.662493,3152.7,3152.0,8.76282]
[1720711792141,0.662493,3152.8,3152.1,0.04125776]
[1720711792340,0.662493,3152.8,3151.9,3.17263]
[1720711792341,0.662493,3152.7,3151.9,3.17263]
[1720711792566,0.662493,3152.6,3152.0,0.04127763]
[1720711792932,0.662493,3152.7,3152.0,0.04127763]
[1720711793453,0.662493,3152.7,3152.0,3.21385763]
[1720711793961,0.662493,3152.6,3152.0,3.21385763]
[1720711794159,0.82811625,3152.6,3152.0,0.04127763]
[1720711794477,0.662493,3152.5,3151.9,3.17268]
[1720711794623,0.662493,3152.4,3152.1,0.04125776]
[1720711794823,0.662493,3152.4,3152.0,0.0415473]
[1720711795023,0.662493,3152.4,3152.2,0.04150755]
[1720711795227,0.662493,3152.5,3152.1,0.04152742]
[1720711795460,0.662493,3152.5,3152.3,0.04148767]
[1720711795733,0.662493,3152.5,3152.2,0.04150755]
[1720711796044,0.662493,3152.5,3151.9,3.17268]
[1720711796045,0.662493,3152.5,3152.3,0.04148767]
[1720711796243,0.9937395,3152.7,3152.3,0.04148767]
[1720711796244,0.662493,3152.6,3152.3,0.04148767]
[1720711796556,0.662493,3152.6,3151.9,3.17268]
[1720711796750,2.990793,3152.6,3151.8,3.17271]
[1720711796928,2.990793,3152.6,3151.9,0.04156718]
[1720711796929,0.662493,3152.5,3151.9,0.04156718]
[1720711797126,0.45415037,3152.5,3151.9,0.04156718]
[1720711797428,0.662493,3152.3,3151.9,0.04156718]
[1720711797866,0.662493,3152.3,3151.4,3.17311]
[1720711798068,3.25170455,3152.2,3151.2,3.17333]
[1720711798250,0.39141976,3152.1,3151.5,0.04164671]
[1720711798561,0.39141976,3152.1,3151.2,3.17333]
[1720711798762,0.39141976,3152.1,3151.6,0.04162683]
[1720711798929,0.39141976,3152.1,3151.2,3.17333]
[1720711799567,0.39141976,3152.1,3151.3,0.04168649]
[1720711800368,3.25170455,3152.2,3151.3,0.04168649]
[1720711800369,0.36431243,3152.0,3151.3,0.04168649]
[1720711800527,0.36431243,3152.0,3151.3,3.21496649]
[1720711801380,2.37362505,3151.9,3151.3,0.04168649]
[1720711802262,0.0793311,3152.1,3151.3,0.04168649]
[1720711802576,0.07932096,3152.2,3151.3,0.04168649]
[1720711802787,0.3251611,3152.1,3151.3,0.04168649]
[1720711803357,0.40448615,3152.1,3151.3,0.04168649]
[1720711803557,2.2625,3152.0,3151.3,0.04168649]
[1720711804454,0.40448615,3152.1,3151.3,0.04168649]
[1720711804455,0.3251611,3152.1,3151.3,0.04168649]
[1720711804789,5.53144,3152.4,3151.3,0.04168649]
[1720711804942,0.07932072,3152.3,3151.3,0.04168649]
[1720711805345,0.07932072,3152.3,3151.4,3.17318]
[1720711805346,3.25162072,3152.3,3151.4,3.17318]
[1720711805645,3.25162072,3152.3,3151.3,0.04168649]
[1720711806058,0.07932072,3152.3,3151.3,0.04168649]
[1720711806290,0.07932072,3152.3,3151.4,3.71983865]
[1720711806444,0.07932072,3152.3,3151.4,3.71977865]
[1720711806644,2.3592,3152.4,3151.4,3.71977865]
[1720711806858,2.3592,3152.4,3151.4,3.71982865]
[1720711807087,2.3592,3152.4,3151.4,3.71980865]
[1720711807261,3.28287411,3152.4,3151.4,3.71979865]
[1720711807647,3.17229,3152.3,3151.3,0.04168649]
[1720711807847,3.25160905,3152.3,3151.3,0.04168649]
[1720711808085,0.07931905,3152.2,3151.3,0.04168649]
[1720711808587,3.17271,3151.9,3151.3,0.04168649]
[1720711808747,3.25204009,3151.9,3151.3,0.04168649]
[1720711808942,0.32520401,3151.8,3151.3,0.04168649]
[1720711809145,3.25230628,3151.7,3151.3,0.04168649]
[1720711809354,3.17297,3151.7,3151.3,0.04168649]
[1720711809549,2.4635,3151.6,3151.3,0.04168649]
[1720711809803,3.17319,3151.4,3151.3,0.04168649]
[1720711809976,3.74479258,3151.4,3151.3,0.04168649]
[1720711810306,0.57160258,3151.4,3151.3,0.04168649]
[1720711810599,0.65864722,3151.9,3151.3,0.04168649]
[1720711810600,7.3,3152.5,3151.5,3.17302]
[1720711810749,3.25151524,3152.4,3151.3,3.21492649]
[1720711811091,3.25151524,3152.4,3151.3,6.38812649]
[1720711811289,0.07931524,3152.4,3151.4,3.17317]
[1720711811513,0.07931524,3152.4,3151.5,0.63880565]
[1720711811854,3.25150524,3152.4,3151.3,3.21488649]
[1720711812151,0.07932069,3152.5,3151.6,3.17292]
[1720711812361,6.34309,3153.1,3151.6,2.3185]
[1720711812565,2.3657,3153.2,3151.3,2.27168649]
[1720711812566,3.17188,3152.8,3151.3,2.27168649]
[1720711812866,2.3657,3153.2,3151.3,2.27168649]
[1720711812867,0.39649894,3152.7,3151.8,3.17278]
[1720711813256,0.317188,3152.7,3151.8,6.34547]
[1720711813457,0.39649615,3152.7,3151.8,3.17269]
[1720711813873,0.39649615,3152.7,3151.9,3.17268]
[1720711814287,1.0985236,3152.6,3151.9,3.17268]
[1720711814486,0.39649615,3152.7,3151.7,3.1728]
[1720711814694,1.09853602,3152.6,3151.7,3.1728]
[1720711814911,0.317188,3152.7,3151.9,3.17268]
[1720711815060,1.0985207,3152.6,3151.9,3.17268]
[1720711815265,1.0985253,3152.5,3151.9,3.17268]
[1720711815466,0.39649237,3152.7,3151.9,3.17268]
[1720711815768,1.09853032,3152.6,3151.9,3.17267]
[1720711815975,2.3657,3153.2,3152.0,3.17249]
[1720711816206,4.34920324,3153.1,3152.0,3.17249]
[1720711816362,1.09840044,3153.0,3152.0,3.17249]
[1720711816706,1.09840044,3152.9,3152.1,3.17246]
[1720711816869,0.0793028,3153.1,3152.1,3.806973]
[1720711816870,1.09840044,3152.8,3152.1,3.806973]
[1720711817078,0.07930272,3153.1,3152.1,3.17246]
[1720711817079,1.09840044,3153.0,3152.1,3.17246]
[1720711817275,1.09840044,3152.9,3152.1,3.17246]
[1720711817600,1.09840044,3152.9,3151.7,2.864588]
[1720711817601,3.25109277,3152.8,3152.2,0.03675879]
[1720711817830,1.09840044,3152.7,3152.2,0.03675879]
[1720711818107,1.09840044,3152.7,3152.0,0.2]
[1720711818400,3.25080272,3153.1,3152.3,0.03673892]
[1720711818618,3.17188,3152.7,3152.0,0.2]
[1720711818917,1.1778267,3152.6,3152.0,0.2]
[1720711819085,1.09851493,3152.5,3152.1,0.03663369]
[1720711819456,1.09851493,3152.5,3152.0,0.2]
[1720711819708,1.17782241,3152.5,3152.1,0.03663369]
[1720711819903,1.09851493,3152.4,3152.1,0.03663369]
[1720711821399,0.65948831,3152.8,3152.1,0.03663369]
[1720711821400,0.65948831,3153.3,3152.4,3.17213]
[1720711821697,1.63697662,3153.6,3152.7,3.17181]
[1720711821698,1.09830216,3153.2,3152.7,3.17181]
[1720711821905,1.09830216,3153.1,3152.7,3.17179]
[1720711822213,2.3942,3153.7,3152.8,3.20819993]
[1720711822501,1.0981669,3153.6,3152.8,3.20819993]
[1720711822701,1.0981669,3153.5,3152.8,3.20819993]
[1720711822909,1.0981669,3153.6,3152.8,3.20819993]
[1720711823205,1.0981669,3153.5,3152.8,3.20819993]
[1720711823401,1.17745183,3153.5,3152.8,0.03644993]
[1720711823574,1.53301308,3153.4,3152.8,0.03644993]
[1720711823758,1.0981669,3153.3,3152.5,6.34405]
[1720711824175,1.0981669,3153.3,3151.9,3.17263]
[1720711824176,0.07928953,3153.2,3152.6,0.03640951]
[1720711824362,3.83289379,3153.0,3151.8,3.17269]
[1720711824601,3.83289379,3153.0,3151.9,3.17266]
[1720711824602,3.22276596,3152.9,3151.9,3.17266]
[1720711824907,2.49836026,3152.8,3152.1,0.03509345]
[1720711825059,1.0984883,3152.7,3152.1,0.03509345]
[1720711825261,1.09848948,3152.6,3152.1,0.03509345]
[1720711825472,1.09848948,3152.5,3152.1,0.03509345]
[1720711825781,1.09848948,3152.5,3151.4,0.45901865]
[1720711825782,4.35000499,3152.4,3151.4,0.45901865]
[1720711825996,1.59961436,3152.3,3152.2,0.03507357]
[1720711826201,1.59961436,3152.3,3151.1,5.42643]
[1720711826202,6.34476,3152.2,3152.1,0.03524728]
[1720711826414,8.77766,3152.1,3150.8,3.17]
[1720711826631,12.84796307,3152.1,3150.6,10.46399]
[1720711826924,13.7305433,3152.1,3150.6,10.46399]
[1720711827287,15.24795549,3152.1,3152.0,0.38019038]
[1720711827618,17.37207535,3152.1,3152.0,0.03959038]
[1720711827825,17.37207535,3152.1,3152.0,0.02942938]
[1720711827826,15.38599397,3152.1,3152.0,0.02942938]
[1720711828334,3.17347,3151.2,3150.6,7.29]
[1720711828487,3.83566244,3151.2,3150.0,7.4990907]
[1720711828697,1.09900428,3151.1,3150.1,0.74990907]
[1720711828929,3.9150088,3151.2,3150.1,0.74990907]
[1720711828930,3.17391,3150.7,3150.1,0.74990907]
[1720711829167,1.76120328,3150.6,3150.0,5.1153907]
[1720711829422,0.66219244,3150.6,3150.0,5.1153907]
[1720711830186,1.09927287,3150.5,3150.0,5.1153907]
[1720711830385,0.66219244,3150.6,3150.0,5.1153907]
[1720711831146,3.1744,3150.2,3150.0,5.1153907]
[1720711831428,3.87549224,3150.2,3150.0,5.1153907]
[1720711831594,3.1744,3150.2,3150.0,5.1153907]
[1720711832227,3.2536176,3150.4,3150.0,5.1153907]
[1720711832706,0.99328866,3150.7,3150.0,5.1153907]
[1720711832707,3.17396,3150.7,3150.0,5.1153907]
[1720711832923,0.66219244,3150.8,3150.0,5.1153907]
[1720711833217,3.83598244,3150.8,3150.0,5.1153907]
[1720711833390,3.95423428,3150.7,3150.0,5.1153907]
[1720711834420,0.70097424,3150.7,3150.0,5.1153907]
[1720711835412,0.7803342,3150.7,3150.0,5.1153907]
[1720711835808,0.07935996,3150.7,3150.0,5.1153907]
[1720711836322,4.3858696,3151.0,3150.3,3.17427]
[1720711836323,0.6622396,3151.0,3150.3,3.17427]
[1720711836523,7.9622396,3151.5,3150.4,0.06347543]
[1720711836752,0.6622396,3151.4,3150.3,3.17427]
[1720711836914,3.8354896,3151.4,3150.3,3.17427]
[1720711837109,3.25263432,3151.3,3150.1,5.40443]
[1720711837346,3.1738,3150.8,3150.0,5.1153907]
[1720711837525,0.74158392,3151.3,3150.0,5.1153907]
[1720711837526,0.07935775,3150.7,3150.0,5.1153907]
[1720711838075,3.174,3150.6,3150.0,5.1153907]
[1720711838433,3.25336196,3150.6,3150.0,5.1153907]
[1720711838640,0.70895716,3150.5,3150.0,5.1153907]
[1720711839218,5.60851,3150.9,3150.0,5.1153907]
[1720711839219,0.07936086,3150.4,3150.0,5.1153907]
[1720711839550,0.6622396,3150.6,3150.0,5.1153907]
[1720711839712,0.74160667,3150.5,3150.0,5.1153907]
[1720711839913,3.91571667,3150.5,3150.0,5.1153907]
[1720711840113,0.55,3150.4,3150.0,5.1153907]
[1720711840445,0.07936768,3150.3,3150.0,5.1153907]
[1720711841450,3.25367768,3150.3,3150.0,5.1153907]
[1720711842148,3.17442,3150.2,3150.0,5.1153907]
[1720711842323,3.1745,3150.1,3150.0,5.1153907]
[1720711842525,6.1982,3150.1,3150.0,5.1153907]
[1720711842767,7.97079744,3150.1,3150.0,5.1153907]
[1720711843854,10.48336996,3150.1,3150.0,5.1153907]
[1720711844011,11.47626118,3150.1,3150.0,5.1153907]
[1720711844413,10.80136996,3150.1,3150.0,4.76510541]
[1720711844610,11.79303725,3150.1,3150.0,3.51118293]
[1720711844851,11.90098494,3150.1,3150.0,3.51118293]
[1720711845213,12.89188061,3150.1,3150.0,3.51118293]
[1720711845614,11.79226563,3150.1,3150.0,3.51118293]
[1720711846335,10.80136996,3150.1,3150.0,3.51118293]
[1720711846541,11.79226563,3150.1,3150.0,3.51118293]